[Event "2. Itzehoer Schach Open"]
[Site "Itzehoe, Germany"]
[Date "2023.04.30"]
[Round "3.45"]
[White "Marx, Jakob"]
[Black "Kaehler, Marvin"]
[Result "1-0"]
[TimeControl "90 min für 40 Züge, Rest 30 min + 30 Sek pro Zug"]
[WhiteElo "1398"]
[BlackElo "1015"]

1. e4 {[%clk 01:30:30]} {[%emt 01:17:03]} e6 {[%clk 01:26:06]} {[%emt
00:04:55]} 2. d4 {[%clk 01:31:18]} {[%emt 00:00:11]} g6 {[%clk 01:26:24]}
{[%emt 00:00:13]} 3. Bd3 {[%clk 01:31:28]} {[%emt 00:00:20]} Bg7 {[%clk
01:26:46]} {[%emt 00:00:08]} 4. c3 {[%clk 01:31:53]} {[%emt 00:00:05]} Ne7
{[%clk 01:27:04]} {[%emt 00:00:11]} 5. Be3 {[%clk 01:32:09]} {[%emt 00:00:15]}
b6 {[%clk 01:27:25]} {[%emt 00:00:10]} 6. Nd2 {[%clk 01:32:29]} {[%emt
00:00:09]} d6 {[%clk 01:27:43]} {[%emt 00:00:13]} 7. Ngf3 {[%clk 01:32:51]}
{[%emt 00:00:07]} Nbc6 {[%clk 01:27:32]} {[%emt 00:00:42]} 8. Qc2 {[%clk
01:33:05]} {[%emt 00:00:16]} Bb7 {[%clk 01:27:52]} {[%emt 00:00:11]} 9. O-O
{[%clk 01:32:38]} {[%emt 00:00:57]} Qd7 {[%clk 01:28:15]} {[%emt 00:00:07]} 10.
Rfd1 {[%clk 01:32:08]} {[%emt 00:00:59]} O-O-O {[%clk 01:19:12]} {[%emt
00:00:49]} 11. Ng5 {[%clk 01:32:13]} {[%emt 00:09:09]} Ng8 {[%clk 01:18:19]}
{[%emt 00:01:24]} 12. Bb5 {[%clk 01:31:41]} {[%emt 00:01:01]} a6 {[%clk
01:17:39]} {[%emt 00:01:11]} 13. Ba4 {[%clk 01:31:45]} {[%emt 00:00:27]} Qe7
{[%clk 01:17:05]} {[%emt 00:01:02]} 14. Qd3 {[%clk 01:31:11]} {[%emt 00:01:04]}
f6 {[%clk 01:15:57]} {[%emt 00:01:39]} 15. Ngf3 {[%clk 01:31:23]} {[%emt
00:00:16]} Qf7 {[%clk 01:15:58]} {[%emt 00:00:31]} 16. Bb3 {[%clk 01:31:03]}
{[%emt 00:00:49]} d5 {[%clk 01:15:35]} {[%emt 00:00:53]} 17. exd5 {[%clk
01:31:08]} {[%emt 00:00:24]} exd5 {[%clk 01:15:54]} {[%emt 00:00:12]} 18. c4
{[%clk 01:31:15]} {[%emt 00:00:23]} Nce7 {[%clk 01:11:02]} {[%emt 00:05:21]} 19.
c5 {[%clk 01:30:32]} {[%emt 00:01:15]} b5 {[%clk 01:10:39]} {[%emt 00:00:52]}
20. a4 {[%clk 01:30:24]} {[%emt 00:00:38]} b4 {[%clk 01:10:32]} {[%emt
00:00:37]} 21. a5 {[%clk 01:30:26]} {[%emt 00:00:28]} h6 {[%clk 01:08:42]}
{[%emt 00:02:20]} 22. Ba4 {[%clk 01:30:14]} {[%emt 00:00:42]} g5 {[%clk
01:05:27]} {[%emt 00:03:44]} 23. c6 {[%clk 01:29:54]} {[%emt 00:00:50]} Nxc6
{[%clk 01:05:36]} {[%emt 00:00:21]} 24. Bxc6 {[%clk 01:30:17]} {[%emt
00:00:06]} Bxc6 {[%clk 01:05:54]} {[%emt 00:00:13]} 25. Qxa6+ {[%clk 01:30:40]}
{[%emt 00:00:06]} Bb7 {[%clk 01:06:09]} {[%emt 00:00:16]} 26. Qd3 {[%clk
01:30:18]} {[%emt 00:00:52]} f5 {[%clk 01:06:21]} {[%emt 00:00:17]} 27. Nb3
{[%clk 01:30:05]} {[%emt 00:00:44]} f4 {[%clk 01:06:26]} {[%emt 00:00:26]} 28.
Bd2 {[%clk 01:30:20]} {[%emt 00:00:14]} Rd6 {[%clk 01:04:53]} {[%emt 00:01:55]}
29. a6 {[%clk 01:30:12]} {[%emt 00:00:46]} Bc6 {[%clk 01:04:00]} {[%emt
00:01:24]} 30. a7 {[%clk 01:29:31]} {[%emt 00:01:10]} Ba8 {[%clk 01:03:19]}
{[%emt 00:01:12]} 31. Ra6 {[%clk 01:29:18]} {[%emt 00:00:43]} Qf6 {[%clk
01:02:42]} {[%emt 00:01:07]} 32. Rxd6 {[%clk 01:28:50]} {[%emt 00:00:58]} Qxd6
{[%clk 01:02:19]} {[%emt 00:00:52]} 33. Qb5 {[%clk 01:28:20]} {[%emt 00:01:00]}
Bf8 {[%clk 01:01:46]} {[%emt 00:01:04]} 34. Qb8+ {[%clk 01:27:37]} {[%emt
00:01:13]} Kd7 {[%clk 01:01:22]} {[%emt 00:00:53]} 35. Nc5+ {[%clk 01:27:25]}
{[%emt 00:00:42]} Ke7 {[%clk 01:00:59]} {[%emt 00:00:52]} 36. Re1+ {[%clk
01:27:35]} {[%emt 00:00:18]} Kf6 {[%clk 01:01:09]} {[%emt 00:00:22]} 37. Re6+
{[%clk 01:27:07]} {[%emt 00:00:59]} Qxe6 {[%clk 00:59:08]} {[%emt 00:02:30]} 38.
Nxe6 {[%clk 01:27:28]} {[%emt 00:00:08]} Kxe6 {[%clk 00:59:19]} {[%emt
00:00:20]} 39. Qc8+ {[%clk 01:26:15]} {[%emt 00:01:43]} Kf7 {[%emt 00:00:49]}
40. Ne5+ {[%clk 01:26:30]} Kg7 {[%clk 00:59:25]} {[%emt 00:00:20]} 41. Qe8
{[%clk 01:26:34]} {[%emt 00:00:24]} Rh7 {[%clk 00:58:52]} {[%emt 00:01:04]} 42.
Qf7+ {[%clk 01:26:58]} {[%emt 00:00:05]} Kh8 {[%clk 00:59:05]} {[%emt
00:00:18]} 43. Ng6# {[%clk 01:26:33]} {[%emt 00:00:04]} 1-0

[Event "2. Itzehoer Schach Open"]
[Site "Itzehoe, Germany"]
[Date "2023.04.30"]
[Round "3.49"]
[White "Lieb, Max"]
[Black "Greiner, Andre"]
[Result "1-0"]
[TimeControl "90 min für 40 Züge, Rest 30 min + 30 Sek pro Zug"]
[WhiteElo "1333"]
[BlackElo "796"]

1. e4 {[%clk 01:30:30]} {[%emt 00:05:59]} e5 {[%clk 01:29:27]} {[%emt
00:01:35]} 2. Nc3 {[%clk 01:31:21]} {[%emt 00:00:09]} Bb4 {[%clk 01:29:17]}
{[%emt 00:00:40]} 3. Bc4 {[%clk 01:31:43]} {[%emt 00:00:07]} Nf6 {[%clk
01:28:58]} {[%emt 00:00:49]} 4. Nf3 {[%clk 01:31:20]} {[%emt 00:00:53]} d6
{[%clk 01:28:11]} {[%emt 00:01:17]} 5. d3 {[%clk 01:31:42]} {[%emt 00:00:08]}
Bg4 {[%clk 01:28:07]} {[%emt 00:00:34]} 6. Bd2 {[%clk 01:31:09]} {[%emt
00:01:04]} c6 {[%clk 01:25:52]} {[%emt 00:02:45]} 7. Qe2 {[%clk 01:30:28]}
{[%emt 00:01:10]} Nbd7 {[%clk 01:25:14]} {[%emt 00:01:08]} 8. h3 {[%clk
01:28:42]} {[%emt 00:02:16]} Bxf3 {[%clk 01:23:03]} {[%emt 00:02:40]} 9. Qxf3
{[%clk 01:28:52]} {[%emt 00:00:22]} Nc5 {[%clk 01:21:58]} {[%emt 00:01:34]} 10.
a3 {[%clk 01:28:27]} {[%emt 00:00:56]} Bxc3 {[%clk 01:18:19]} {[%emt 00:04:08]}
11. Bxc3 {[%clk 01:27:27]} {[%emt 00:01:31]} Qb6 {[%clk 01:15:51]} {[%emt
00:02:57]} 12. O-O {[%clk 01:23:34]} {[%emt 00:04:24]} Na4 {[%clk 01:15:44]}
{[%emt 00:00:37]} 13. Rab1 {[%clk 01:23:30]} {[%emt 00:00:34]} Nxc3 {[%clk
01:10:03]} {[%emt 00:06:10]} 14. bxc3 {[%clk 01:23:50]} {[%emt 00:00:10]} Qc7
{[%clk 01:07:08]} {[%emt 00:03:24]} 15. d4 {[%clk 01:22:49]} {[%emt 00:01:32]}
b5 {[%clk 01:06:56]} {[%emt 00:00:42]} 16. Bb3 {[%clk 01:21:50]} {[%emt
00:01:27]} O-O {[%clk 01:05:13]} {[%emt 00:02:14]} 17. a4 {[%clk 01:20:47]}
{[%emt 00:01:34]} b4 {[%clk 00:58:16]} {[%emt 00:07:26]} 18. dxe5 {[%clk
01:16:52]} {[%emt 00:04:25]} dxe5 {[%clk 00:55:47]} {[%emt 00:02:58]} 19. cxb4
{[%clk 01:17:06]} {[%emt 00:00:18]} Rad8 {[%clk 00:54:00]} {[%emt 00:02:16]} 20.
Qe3 {[%clk 01:15:51]} {[%emt 00:01:46]} Rd4 {[%clk 00:53:22]} {[%emt 00:01:07]}
21. f3 {[%clk 01:16:02]} {[%emt 00:00:19]} Rfd8 {[%clk 00:51:23]} {[%emt
00:02:28]} 22. c3 {[%clk 01:08:49]} {[%emt 00:07:45]} Rd3 {[%clk 00:50:07]}
{[%emt 00:01:45]} 23. Qe1 {[%clk 01:09:06]} {[%emt 00:00:14]} Nh5 {[%clk
00:48:37]} {[%emt 00:01:58]} 24. Rd1 {[%clk 01:07:40]} {[%emt 00:01:57]} Nf4
{[%clk 00:45:34]} {[%emt 00:03:32]} 25. Rxd3 {[%clk 01:06:27]} {[%emt
00:01:44]} Nxd3 {[%clk 00:43:14]} {[%emt 00:02:50]} 26. Qb1 {[%clk 01:06:33]}
{[%emt 00:00:24]} Qb6+ {[%clk 00:42:47]} {[%emt 00:00:57]} 27. Kh2 {[%clk
01:06:29]} {[%emt 00:00:34]} Qe3 {[%clk 00:40:40]} {[%emt 00:02:37]} 28. f4
{[%clk 01:00:03]} {[%emt 00:06:55]} Nxf4 {[%clk 00:39:16]} {[%emt 00:01:55]} 29.
Rf3 {[%clk 00:57:49]} {[%emt 00:02:44]} Qd2 {[%clk 00:36:15]} {[%emt 00:03:31]}
30. Qf1 {[%clk 00:55:09]} {[%emt 00:03:11]} Rd3 {[%clk 00:33:11]} {[%emt
00:03:32]} 31. Rxd3 {[%clk 00:54:31]} {[%emt 00:01:09]} Nxd3 {[%clk 00:33:01]}
{[%emt 00:00:39]} 32. Qxf7+ {[%clk 00:54:53]} {[%emt 00:00:09]} 1-0

[Event "2. Itzehoer Schach Open"]
[Site "Itzehoe, Germany"]
[Date "2023.04.30"]
[Round "3.41"]
[White "Aguike, Chidera"]
[Black "Wolff, Ole"]
[Result "1-0"]
[TimeControl "90 min für 40 Züge, Rest 30 min + 30 Sek pro Zug"]
[WhiteElo "1450"]
[BlackElo "1097"]

1. e4 {[%clk 01:29:30]} {[%emt 00:01:29]} e6 {[%clk 01:30:54]} {[%emt
00:00:06]} 2. d4 {[%clk 01:29:47]} {[%emt 00:00:13]} d5 {[%clk 01:31:19]}
{[%emt 00:00:05]} 3. exd5 {[%clk 01:30:11]} {[%emt 00:00:06]} exd5 {[%clk
01:31:43]} {[%emt 00:00:06]} 4. h3 {[%clk 01:30:38]} {[%emt 00:00:03]} h6
{[%clk 01:31:39]} {[%emt 00:00:34]} 5. Nf3 {[%clk 01:30:49]} {[%emt 00:00:19]}
Bd6 {[%clk 01:31:44]} {[%emt 00:00:25]} 6. Bd3 {[%clk 01:31:03]} {[%emt
00:00:16]} Nf6 {[%clk 01:32:05]} {[%emt 00:00:09]} 7. O-O {[%clk 01:30:44]}
{[%emt 00:00:49]} O-O {[%clk 01:32:26]} {[%emt 00:00:08]} 8. c3 {[%clk
01:30:27]} {[%emt 00:00:48]} b6 {[%clk 01:32:10]} {[%emt 00:00:45]} 9. Re1
{[%clk 01:30:04]} {[%emt 00:00:54]} Re8 {[%clk 01:30:13]} {[%emt 00:02:27]} 10.
Rxe8+ {[%clk 01:30:07]} {[%emt 00:00:26]} Qxe8 {[%clk 01:30:29]} {[%emt
00:00:14]} 11. Be3 {[%clk 01:30:03]} {[%emt 00:00:35]} Ba6 {[%clk 01:28:36]}
{[%emt 00:02:24]} 12. Bxa6 {[%clk 01:29:40]} {[%emt 00:00:53]} Nxa6 {[%clk
01:29:03]} {[%emt 00:00:03]} 13. Nbd2 {[%clk 01:29:10]} {[%emt 00:01:00]} Qb5
{[%clk 01:25:34]} {[%emt 00:03:58]} 14. Qc2 {[%clk 01:26:50]} {[%emt 00:02:50]}
Rc8 {[%clk 01:23:18]} {[%emt 00:02:47]} 15. Qf5 {[%clk 01:22:59]} {[%emt
00:04:20]} Qd7 {[%clk 01:18:38]} {[%emt 00:05:10]} 16. Nh4 {[%clk 01:22:30]}
{[%emt 00:00:58]} Qxf5 {[%clk 01:16:56]} {[%emt 00:02:13]} 17. Nxf5 {[%clk
01:22:50]} {[%emt 00:00:10]} Ne4 {[%clk 01:11:54]} {[%emt 00:05:32]} 18. Nxe4
{[%clk 01:18:56]} {[%emt 00:04:24]} dxe4 {[%clk 01:08:42]} {[%emt 00:03:42]} 19.
Re1 {[%clk 01:18:40]} {[%emt 00:00:46]} Re8 {[%clk 01:08:06]} {[%emt 00:01:06]}
20. c4 {[%clk 01:18:04]} {[%emt 00:01:06]} Kh7 {[%clk 01:03:47]} {[%emt
00:04:50]} 21. Nxd6 {[%clk 01:16:57]} {[%emt 00:01:36]} cxd6 {[%clk 01:04:15]}
{[%emt 00:00:02]} 22. Bf4 {[%clk 01:17:07]} {[%emt 00:00:20]} Re6 {[%clk
01:04:26]} {[%emt 00:00:19]} 23. f3 {[%clk 01:15:48]} {[%emt 00:01:49]} g5
{[%clk 01:02:35]} {[%emt 00:02:21]} 24. Bh2 {[%clk 01:15:35]} {[%emt 00:00:41]}
f5 {[%clk 01:01:51]} {[%emt 00:01:15]} 25. d5 {[%clk 01:15:33]} {[%emt
00:00:32]} Rf6 {[%clk 01:01:42]} {[%emt 00:00:39]} 26. fxe4 {[%clk 01:15:33]}
{[%emt 00:00:30]} f4 {[%clk 00:59:18]} {[%emt 00:02:55]} 27. e5 {[%clk
01:15:26]} {[%emt 00:00:36]} dxe5 {[%clk 00:59:40]} {[%emt 00:00:08]} 28. Rxe5
{[%clk 01:15:42]} {[%emt 00:00:13]} Rf7 {[%clk 00:59:27]} {[%emt 00:00:44]} 29.
Kf2 {[%clk 01:13:16]} {[%emt 00:02:55]} Nc5 {[%clk 00:59:31]} {[%emt 00:00:27]}
30. Ke2 {[%clk 01:13:00]} {[%emt 00:00:47]} Kg6 {[%clk 00:59:23]} {[%emt
00:00:38]} 31. Bg1 {[%clk 01:12:40]} {[%emt 00:00:49]} Kf6 {[%clk 00:58:20]}
{[%emt 00:01:34]} 32. Bd4 {[%clk 01:10:26]} {[%emt 00:02:43]} Nd7 {[%clk
00:56:53]} {[%emt 00:01:58]} 33. Re6+ {[%emt 00:01:24]} 1-0

[Event "2. Itzehoer Schach Open"]
[Site "Itzehoe, Germany"]
[Date "2023.04.30"]
[Round "3.39"]
[White "Steinbach, Aaron"]
[Black "Steiner, Peter Markus"]
[Result "0-1"]
[TimeControl "90 min für 40 Züge, Rest 30 min + 30 Sek pro Zug"]
[WhiteElo "787"]
[BlackElo "1603"]

1. d4 {[%clk 01:30:58]} {[%emt 00:00:02]} d5 {[%clk 01:30:38]} {[%emt
00:00:23]} 2. c4 {[%clk 01:31:22]} {[%emt 00:00:06]} c6 {[%clk 01:31:03]}
{[%emt 00:00:05]} 3. Nc3 {[%clk 01:31:36]} {[%emt 00:00:16]} Nf6 {[%clk
01:31:25]} {[%emt 00:00:08]} 4. Bg5 {[%clk 01:31:30]} {[%emt 00:00:36]} dxc4
{[%clk 01:30:56]} {[%emt 00:00:59]} 5. e4 {[%clk 01:31:37]} {[%emt 00:00:22]}
Nbd7 {[%clk 01:27:39]} {[%emt 00:03:47]} 6. Bxc4 {[%clk 01:31:05]} {[%emt
00:01:04]} b5 {[%clk 01:28:01]} {[%emt 00:00:07]} 7. Bd3 {[%clk 01:31:28]}
{[%emt 00:00:06]} Bb7 {[%clk 01:28:03]} {[%emt 00:00:29]} 8. f4 {[%clk
01:30:47]} {[%emt 00:01:11]} h6 {[%clk 01:28:26]} {[%emt 00:00:07]} 9. Bh4
{[%clk 01:30:37]} {[%emt 00:00:40]} Qa5 {[%clk 01:27:38]} {[%emt 00:01:17]} 10.
a3 {[%clk 01:29:37]} {[%emt 00:01:30]} e6 {[%clk 01:27:42]} {[%emt 00:00:26]}
11. Nf3 {[%clk 01:29:43]} {[%emt 00:00:24]} Be7 {[%clk 01:28:01]} {[%emt
00:00:11]} 12. h3 {[%clk 01:28:18]} {[%emt 00:01:55]} a6 {[%clk 01:27:38]}
{[%emt 00:00:53]} 13. O-O {[%clk 01:27:06]} {[%emt 00:01:42]} Qb6 {[%clk
01:26:22]} {[%emt 00:01:46]} 14. b4 {[%clk 01:26:03]} {[%emt 00:01:33]} a5
{[%clk 01:25:11]} {[%emt 00:01:41]} 15. Bf2 {[%clk 01:25:54]} {[%emt 00:00:39]}
Qc7 {[%clk 01:23:15]} {[%emt 00:02:26]} 16. Ne2 {[%clk 01:24:03]} {[%emt
00:02:20]} axb4 {[%clk 01:22:24]} {[%emt 00:01:21]} 17. a4 {[%clk 01:21:37]}
{[%emt 00:02:57]} bxa4 {[%clk 01:19:58]} {[%emt 00:02:56]} 18. Rxa4 {[%clk
01:21:46]} {[%emt 00:00:22]} Rxa4 {[%clk 01:19:56]} {[%emt 00:00:31]} 19. Qxa4
{[%clk 01:22:06]} {[%emt 00:00:10]} O-O {[%clk 01:20:18]} {[%emt 00:00:07]} 20.
Qb3 {[%clk 01:21:21]} {[%emt 00:01:16]} Ra8 {[%clk 01:20:15]} {[%emt 00:00:32]}
21. Rc1 {[%clk 01:20:03]} {[%emt 00:01:49]} Ra3 {[%clk 01:18:14]} {[%emt
00:02:30]} 22. Qd1 {[%clk 01:18:30]} {[%emt 00:02:04]} Qa5 {[%clk 01:16:03]}
{[%emt 00:02:39]} 23. Bc2 {[%clk 01:16:34]} {[%emt 00:02:28]} c5 {[%clk
01:11:14]} {[%emt 00:05:19]} 24. e5 {[%clk 01:11:52]} {[%emt 00:05:12]} Nd5
{[%clk 01:08:46]} {[%emt 00:02:57]} 25. dxc5 {[%clk 01:10:03]} {[%emt
00:02:20]} Nxc5 {[%clk 01:06:52]} {[%emt 00:02:24]} 26. Nfd4 {[%clk 01:06:45]}
{[%emt 00:03:47]} Na4 {[%clk 00:57:46]} {[%emt 00:09:34]} 27. Nb3 {[%clk
01:03:45]} {[%emt 00:03:31]} Qa8 {[%clk 00:55:56]} {[%emt 00:02:21]} 28. Nd2
{[%clk 00:58:27]} {[%emt 00:05:48]} Nac3 {[%clk 00:51:43]} {[%emt 00:04:42]} 29.
Nxc3 {[%clk 00:54:55]} {[%emt 00:04:02]} Nxc3 {[%clk 00:51:45]} {[%emt
00:00:28]} 30. Qf1 {[%clk 00:55:02]} {[%emt 00:00:22]} Bxg2 {[%clk 00:40:14]}
{[%emt 00:12:02]} 31. Qxg2 {[%emt 00:01:03]} Ne2+ {[%emt 00:00:10]} 32. Kh2
{[%clk 00:52:52]} {[%emt 00:01:28]} Qxg2+ {[%clk 00:40:36]} {[%emt 00:00:08]}
33. Kxg2 {[%clk 00:53:07]} {[%emt 00:00:15]} Nxc1 {[%clk 00:41:03]} {[%emt
00:00:03]} 34. Nc4 {[%clk 00:51:02]} {[%emt 00:02:35]} Ra8 {[%clk 00:39:54]}
{[%emt 00:01:36]} 35. Nd2 {[%clk 00:47:52]} {[%emt 00:03:40]} 0-1

[Event "2. Itzehoer Schach Open"]
[Site "Itzehoe, Germany"]
[Date "2023.04.30"]
[Round "3.40"]
[White "Schindehuette, Frank"]
[Black "Pitic, Alen"]
[Result "0-1"]
[TimeControl "90 min für 40 Züge, Rest 30 min + 30 Sek pro Zug"]
[WhiteElo "1575"]
[BlackElo "1276"]

1. f4 {[%clk 01:30:58]} {[%emt 00:00:02]} d5 {[%clk 01:30:51]} {[%emt
00:00:09]} 2. c4 {[%clk 01:31:23]} {[%emt 00:00:05]} Nf6 {[%clk 01:30:03]}
{[%emt 00:01:18]} 3. d4 {[%clk 01:31:36]} {[%emt 00:00:17]} Bf5 {[%clk
01:29:36]} {[%emt 00:00:57]} 4. Nc3 {[%clk 01:31:52]} {[%emt 00:00:14]} e6
{[%clk 01:29:31]} {[%emt 00:00:36]} 5. Nf3 {[%clk 01:30:41]} {[%emt 00:01:41]}
c5 {[%clk 01:28:41]} {[%emt 00:01:19]} 6. e3 {[%clk 01:29:30]} {[%emt
00:01:41]} Bd6 {[%clk 01:28:02]} {[%emt 00:01:09]} 7. Qb3 {[%clk 01:28:59]}
{[%emt 00:01:02]} O-O {[%clk 01:25:57]} {[%emt 00:02:35]} 8. Qxb7 {[%clk
01:28:06]} {[%emt 00:01:23]} Nbd7 {[%clk 01:25:14]} {[%emt 00:01:13]} 9. Qc6
{[%clk 01:24:09]} {[%emt 00:04:26]} Be7 {[%clk 01:20:33]} {[%emt 00:05:11]} 10.
cxd5 {[%clk 01:21:31]} {[%emt 00:03:08]} exd5 {[%clk 01:13:46]} {[%emt
00:07:17]} 11. Nxd5 {[%clk 01:17:48]} {[%emt 00:04:13]} Be4 {[%clk 01:12:37]}
{[%emt 00:01:39]} 12. Nxe7+ {[%clk 01:14:48]} {[%emt 00:03:30]} Qxe7 {[%clk
01:12:56]} {[%emt 00:00:11]} 13. Qa4 {[%clk 01:09:45]} {[%emt 00:05:33]} Nb6
{[%clk 01:10:39]} {[%emt 00:02:48]} 14. Qa3 {[%clk 01:08:29]} {[%emt 00:01:47]}
Rac8 {[%clk 01:07:49]} {[%emt 00:03:20]} 15. Bd2 {[%clk 01:07:36]} {[%emt
00:01:22]} Rfe8 {[%clk 01:04:16]} {[%emt 00:04:03]} 16. Rc1 {[%clk 01:03:54]}
{[%emt 00:04:12]} Nfd5 {[%clk 00:59:41]} {[%emt 00:05:05]} 17. Kf2 {[%clk
00:59:48]} {[%emt 00:04:36]} Bxf3 {[%clk 00:56:53]} {[%emt 00:03:19]} 18. Kxf3
{[%clk 00:59:38]} {[%emt 00:00:39]} Qe4+ {[%clk 00:54:53]} {[%emt 00:02:30]} 19.
Kf2 {[%clk 00:59:23]} {[%emt 00:00:44]} cxd4 {[%clk 00:54:04]} {[%emt
00:01:21]} 20. Rxc8 {[%clk 00:45:34]} {[%emt 00:14:19]} Nxc8 {[%clk 00:47:20]}
{[%emt 00:07:15]} 21. Qd3 {[%clk 00:33:59]} {[%emt 00:12:04]} dxe3+ {[%clk
00:47:08]} {[%emt 00:00:41]} 22. Bxe3 {[%clk 00:33:59]} {[%emt 00:00:31]} Qxd3
{[%clk 00:42:18]} {[%emt 00:05:19]} 23. Bxd3 {[%clk 00:34:20]} {[%emt
00:00:09]} Rxe3 {[%clk 00:42:21]} {[%emt 00:00:27]} 24. Ba6 {[%clk 00:31:16]}
{[%emt 00:03:35]} Re8 {[%clk 00:41:35]} {[%emt 00:01:15]} 25. Rc1 {[%clk
00:30:45]} {[%emt 00:01:01]} Ncb6 {[%clk 00:41:33]} {[%emt 00:00:33]} 26. g3
{[%clk 00:29:59]} {[%emt 00:01:15]} g6 {[%clk 00:41:27]} {[%emt 00:00:35]} 27.
a3 {[%clk 00:29:27]} {[%emt 00:01:04]} h6 {[%clk 00:40:29]} {[%emt 00:01:27]}
28. Rd1 {[%clk 00:28:47]} {[%emt 00:01:10]} Ne3 {[%clk 00:39:11]} {[%emt
00:01:48]} 29. Rd3 {[%clk 00:26:41]} {[%emt 00:02:36]} Ng4+ {[%clk 00:38:03]}
{[%emt 00:01:38]} 30. Kg2 {[%clk 00:26:12]} {[%emt 00:00:59]} h5 {[%clk
00:37:32]} {[%emt 00:01:02]} 31. h3 {[%clk 00:22:57]} {[%emt 00:03:44]} Nf6
{[%clk 00:33:17]} {[%emt 00:04:45]} 32. Kf3 {[%clk 00:22:26]} {[%emt 00:01:02]}
Kg7 {[%clk 00:32:45]} {[%emt 00:01:01]} 33. Bb5 {[%clk 00:21:54]} {[%emt
00:01:01]} Rb8 {[%clk 00:32:46]} {[%emt 00:00:30]} 34. b3 {[%clk 00:20:49]}
{[%emt 00:01:35]} Kh6 {[%clk 00:32:29]} {[%emt 00:00:46]} 35. a4 {[%clk
00:19:12]} {[%emt 00:02:08]} a5 {[%clk 00:31:57]} {[%emt 00:01:02]} 36. Rd6
{[%clk 00:19:14]} {[%emt 00:00:28]} Kg7 {[%clk 00:31:13]} {[%emt 00:01:14]} 37.
Rc6 {[%clk 00:18:27]} {[%emt 00:01:17]} Nbd5 {[%clk 00:30:13]} {[%emt
00:01:29]} 38. Ra6 {[%clk 00:16:51]} {[%emt 00:02:07]} Rc8 {[%clk 00:29:22]}
{[%emt 00:01:19]} 39. Bc4 {[%clk 00:16:06]} {[%emt 00:01:17]} Rc5 {[%clk
00:29:03]} {[%emt 00:00:51]} 40. Ra7 {[%clk 00:14:36]} {[%emt 00:02:00]} Rc7
{[%clk 00:25:12]} {[%emt 00:04:21]} 41. Rxa5 {[%clk 00:14:01]} {[%emt
00:01:04]} Nb6 {[%clk 00:25:31]} {[%emt 00:00:10]} 42. g4 {[%clk 00:11:24]}
{[%emt 00:03:07]} hxg4+ {[%clk 00:24:37]} {[%emt 00:01:25]} 43. hxg4 {[%clk
00:11:48]} {[%emt 00:00:07]} Nxc4 {[%clk 00:24:51]} {[%emt 00:00:16]} 44. bxc4
{[%clk 00:12:11]} {[%emt 00:00:06]} Rxc4 {[%clk 00:25:09]} {[%emt 00:00:11]} 45.
g5 {[%clk 00:11:09]} {[%emt 00:01:33]} Rc3+ {[%clk 00:25:22]} {[%emt 00:00:17]}
46. Ke2 {[%clk 00:11:11]} {[%emt 00:00:27]} Nd7 {[%clk 00:24:54]} {[%emt
00:00:59]} 47. f5 {[%clk 00:10:44]} {[%emt 00:00:57]} gxf5 {[%clk 00:23:48]}
{[%emt 00:01:36]} 48. Rxf5 {[%clk 00:11:05]} {[%emt 00:00:09]} Kg6 {[%clk
00:22:41]} {[%emt 00:01:37]} 49. Rd5 {[%clk 00:11:17]} {[%emt 00:00:19]} Nf8
{[%clk 00:22:40]} {[%emt 00:00:30]} 50. a5 {[%clk 00:11:14]} {[%emt 00:00:34]}
Ra3 {[%clk 00:22:51]} {[%emt 00:00:18]} 0-1